Cogmind - Beta 15 @@@ ROGUE MODE // 2025.08.07 @ 22:52:53 Player: 7604 Result: Destroyed by X-87 Electro with Compact HERF Cannon Performance ------------- Evolutions (8) 4000 Regions Visited (23) 4600 Robots Destroyed (101) 505 Value Destroyed (4444) 4444 Prototype IDs (188) 3760 Alien Tech Used (4) 800 Bonus (10338) 10338 TOTAL SCORE: 28447 Bonus ------- High Alert Combat Kills 170 Follower Combat Kills 3588 Network Hubs Disabled 400 Registered with UFD 300 Met Optimus in HQ 500 Met Warlord at Base 500 MAIN.C Attacked Warlord 500 Built Enhanced Grunts 300 A7 Reached Mainframe 300 Met R17 at Cetus 500 Hacked Protovariant 1000 Met R17 at Research 2000 Met Optimus at Protoforge 1000 Friendly Fire -720 Cogmind --------- Core Integrity 0/1450 Matter 300/300 Energy 2/100 System Corruption 28% Temperature Cool (0) Movement Hovering (56) Location -2/Protoforge Parts ------- > --- POWER (2) -------- (None) > --- PROPULSION (7) --- Concept Combat Aerolev Unit Concept Combat Aerolev Unit Concept Gyrokinetic System > --- UTILITY (12) ----- Large Storage Unit Experimental Optical Array Advanced Target Analyzer > --- WEAPON (2) ------- (None) > --- INVENTORY (15) --- Backup Power VII 0bPrime Scrap Suit Vortex Rail (40) Overtuned Coil Gun UFD Drillbomb Peak State ------------ > --- POWER ------------ Backup Power VII Concept Zero-point Core > --- PROPULSION ------- Experimental Antigrav System Gravjet Array Gravjet Array Gravjet Array > --- UTILITY ---------- Large Storage Unit Experimental Optical Array Long-range Sensor Array Experimental Signal Interpreter Advanced Terrain Scanner Experimental Terrain Scan Processor Experimental Core Analyzer Femtoactuators Advanced Transmission Jammer Centrium Medium Armor Plating Advanced Hacking Suite Experimental Hacking Suite > --- WEAPON ----------- Sigix Broadsword > --- INVENTORY -------- Backup Power VII Experimental Antigrav System Concept Combat Aerolev Unit Concept Combat Aerolev Unit Concept Gyrokinetic System Centrium Medium Armor Plating Dimensional Node Initializer Transdimensional Reconstructor High-powered Transdimensional Reconstructor Subatomic Replicator Vortex Rail Vortex Rail Enhanced Nova Cannon Ragnarok Missile Launcher Containment Facilitator [Rating: 221] Favorites ----------- Power Backup Power VII Engine Subdweller Power Source Power Core Backup Power VII Reactor Quantum Reactor Propulsion Improved Diametric Drive Treads Light Treads Leg Overtuned Titanium Leg Wheel Subdweller Monowheel Hover Unit Gravjet Array Flight Unit Improved Diametric Drive Utility Huge Storage Unit Device Advanced Sensor Array Storage Huge Storage Unit Processor Advanced Terrain Scan Processor Hackware Advanced Hacking Suite Protection Centrium Medium Armor Plating Weapon Subdweller Laser Energy Gun Subdweller Laser Energy Cannon Subdweller Beam Cannon Ballistic Gun Light Assault Rifle Ballistic Cannon Heavy Flak Cannon Launcher Thermoblaster Special Weapon Multitool Impact Weapon Gravity Flail Slashing Weapon Phasing Sabre Piercing Weapon Spear Special Melee Weapon Improved Datajack Build | -11 -10 -10 -7 -7 -5 -5 -5 -5 -5 -5 -4 -4 -4 -4 -4 -4 -4 -4 -3 -3 -2 -2 -2 ------- Run | Yrd Mat Sub Rec Scr Fac Was Fac Upp Upp War Pro Fac Was Fac Ext Cet Arc Hub Res Qua Res Tes Frg Slots Evolved 16 | . . . . . 10 . . . . . . 2 . . . . . . 2 . 2 . . Power 1 | . . . . . . . . . . . . 1 . . . . . . . . . . . Propulsion 5 | . . . . . 4 . . . . . . . . . . . . . . . 1 . . Utility 10 | . . . . . 6 . . . . . . 1 . . . . . . 2 . 1 . . Weapon . | . . . . . . . . . . . . . . . . . . . . . . . . Parts Attached 184 | 6 15 10 1 8 17 . 4 1 2 2 . 6 . 6 2 4 2 3 29 8 6 20 32 Power 23 | 1 3 1 . . 3 . 1 . . . . 1 . 1 1 1 . . 4 . 1 1 4 Engine 7 | 1 2 1 . . . . . . . . . . . . . . . . 2 . . . 1 Core 11 | . 1 . . . 3 . 1 . . . . 1 . 1 1 . . . 1 . . . 2 Reactor 5 | . . . . . . . . . . . . . . . . 1 . . 1 . 1 1 1 Propulsion 42 | 2 . 5 . 2 4 . . 1 . 1 . . . . . 3 . . 7 1 1 3 12 Treads 4 | 2 . 1 . . . . . . . . . . . . . 1 . . . . . . . Leg 2 | . . . . 2 . . . . . . . . . . . . . . . . . . . Wheel 5 | . . 4 . . . . . . . . . . . . . . . . . . 1 . . Hover 10 | . . . . . . . . . . . . . . . . . . . . . . . 10 Flight 21 | . . . . . 4 . . 1 . 1 . . . . . 2 . . 7 1 . 3 2 Utility 74 | 1 10 1 . 2 8 . 3 . 2 . . 3 . 4 . . 1 3 10 5 3 6 12 Device 27 | . 3 1 . . 2 . 2 . 1 . . 1 . . . . . . 5 2 2 3 5 Storage 11 | 1 3 . . 1 1 . . . . . . . . . . . . . 1 2 . 1 1 Processor 15 | . . . . . 2 . 1 . 1 . . 1 . 2 . . . . 2 . . 2 4 Hackware 11 | . . . . 1 2 . . . . . . . . 2 . . 1 1 2 1 1 . . Protection 10 | . 4 . . . 1 . . . . . . 1 . . . . . 2 . . . . 2 Artifact . | . . . . . . . . . . . . . . . . . . . . . . . . Weapon 45 | 2 2 3 1 4 2 . . . . 1 . 2 . 1 1 . 1 . 8 2 1 10 4 Energy Gun 8 | . 1 3 . 2 . . . . . . . . . . . . . . 1 . . 1 . Energy Cannon 4 | . . . 1 . . . . . . . . . . 1 . . . . . 1 1 . . Ballistic Gun 9 | 2 1 . . . 2 . . . . . . . . . . . . . . . . . 4 Ballistic Cannon 3 | . . . . . . . . . . . . . . . . . . . . . . 3 . Launcher 8 | . . . . . . . . . . 1 . . . . . . . . 4 . . 3 . Special Weapon 2 | . . . . . . . . . . . . 1 . . . . . . . . . 1 . Impact Weapon 1 | . . . . . . . . . . . . . . . . . . . . . . 1 . Slashing Weapon 2 | . . . . . . . . . . . . . . . 1 . . . . . . 1 . Piercing Weapon 5 | . . . . 1 . . . . . . . 1 . . . . . . 2 1 . . . Special Melee Weapon 3 | . . . . 1 . . . . . . . . . . . . 1 . 1 . . . . Unidentified Prototypes 29 | . . 1 . . 4 . . . 1 . . . . . . . . . 3 2 2 15 1 Parts Lost 49 | . 3 1 . . 2 . 1 . . . . 2 . . 1 1 . 6 2 1 1 . 28 Power 7 | . 1 . . . . . . . . . . . . . 1 . . 1 . . 1 . 3 Propulsion 12 | . . 1 . . . . 1 . . . . . . . . 1 . . 2 1 . . 6 Utility 21 | . 1 . . . 1 . . . . . . 1 . . . . . 4 . . . . 14 Weapon 9 | . 1 . . . 1 . . . . . . 1 . . . . . 1 . . . . 5 Highest Loss Streak 15 | . 1 1 . . 1 . 1 . . . . 1 . . 1 1 . 6 1 1 1 . 15 To Critical Strikes . | . . . . . . . . . . . . . . . . . . . . . . . . Average Backups 15 | 1 13 22 21 18 8 10 9 9 9 9 9 8 9 9 10 9 9 10 8 12 13 14 13 Power 1 | . 1 1 1 . 1 2 1 1 1 1 1 . 1 1 1 1 1 1 . 1 . . 1 Propulsion 1 | . . 1 3 1 1 3 2 1 1 1 1 1 1 1 2 1 . . 1 . . 1 1 Utility 7 | . 10 13 9 9 4 3 4 4 5 4 3 2 4 3 3 3 5 6 3 3 2 3 2 Weapon 3 | . . 4 6 5 1 1 1 1 1 1 3 3 3 3 3 3 3 3 3 5 5 4 4 Tool/Special . | . . . . . . . . . . . . . . . . . . . . . . . . Unused Backups 58 | . . 7 6 12 3 . 1 . 1 3 . 1 . 2 . 1 1 2 2 3 . 2 11 Power 2 | . . 1 . 1 . . . . . . . . . . . . . . . . . . . Propulsion 5 | . . 1 . . 1 . 1 . . 1 . . . . . . . . . . . . 1 Utility 32 | . . 4 4 7 1 . . . 1 1 . 1 . 2 . 1 1 2 1 2 . 1 3 Weapon 16 | . . 1 2 3 1 . . . . 1 . . . . . . . . 1 1 . . 6 Tool/Special 3 | . . . . 1 . . . . . . . . . . . . . . . . . 1 1 Average Slot Usage (%) 87 | . 99 99 100 77 64 73 71 72 74 78 78 77 80 84 81 79 87 87 94 99 93 93 86 Engine 5 | . 13 3 14 13 . . . . . . . . . . . . . . . . . . . Core 4 | . . 10 . . 4 5 5 5 5 5 5 8 9 9 5 2 5 4 6 9 7 7 7 Treads 7 | . 28 22 . . . . . . . . . . . . . 1 5 4 . . . . . Leg 4 | . . . . 18 . . . . . . . . . . . . . . . . . . . Wheel 3 | . . 5 28 8 . . . . . . . . . . . . . . . . . . . Flight 7 | . . . . . 13 15 13 14 15 15 15 14 14 14 14 17 21 21 26 27 26 27 16 Device 9 | . 13 14 14 1 10 10 10 10 10 10 10 14 14 14 12 14 15 14 12 9 11 11 8 Storage 9 | . 14 14 14 13 5 5 5 5 5 5 5 4 4 4 4 4 5 4 3 4 4 4 4 Processor 5 | . . . . . 4 5 7 10 11 15 15 14 14 18 19 15 10 10 10 9 8 12 17 Hackware 7 | . . . . 1 14 15 15 15 15 15 15 11 9 11 14 14 15 15 18 23 21 20 12 Energy Gun 6 | . . 24 22 4 . . . . . . . . . . . . . . . . . . . Energy Cannon 1 | . . . 5 4 . . . . . . . . . . 3 . . . . . . . . Ballistic Gun 4 | . 27 3 . . 3 5 5 5 5 5 4 2 4 3 . . . . . . . . 1 Piercing Weapon 1 | . . . . . 5 5 5 5 5 4 5 3 . . . . . . 3 3 3 . . Special Melee Weapon 2 | . . . . 8 . . . . . . . . . . . . 3 4 1 4 4 . . Peak Build Rating 221 | 6 12 22 23 31 95 95 100 103 115 119 119 137 133 145 147 142 131 131 148 161 175 199 221 Average Rating 71 | 5 8 19 22 22 85 95 95 102 106 117 118 129 133 141 140 130 127 129 135 150 166 185 195 On Entrance 100 | . 6 12 21 23 30 95 95 94 103 115 119 119 133 133 145 140 122 131 91 147 161 166 199 Naked Turns . | . . . . . . . . . . . . . . . . . . . . . . . . Heaviest Build 99 | 10 90 94 98 98 33 31 33 27 27 33 27 39 35 38 38 38 27 27 43 41 43 54 99 Greatest Support 110 | 40 40 40 40 39 36 36 36 38 31 38 31 41 38 41 41 38 28 34 44 44 49 50 110 Greatest Overweight (x) 32 | . 2 4 4 32 . . . . . 1 . . . 11 . . . . . . 13 15 16 Average Overweight (x) . | . 1 2 2 3 . . . . . . . . . . . . . . . . . . . Largest Inventory Capacity 25 | 8 25 25 25 25 15 10 10 10 10 10 10 10 10 10 10 10 10 10 10 15 15 15 25 Average Capacity 18 | 7 22 25 25 24 10 10 10 10 10 10 10 10 10 10 10 10 10 9 9 13 15 15 15 Most Carried 25 | 4 22 25 25 25 14 10 10 10 10 10 10 10 10 10 10 10 10 10 10 15 15 15 23 Average Carried 16 | 1 13 24 24 21 8 10 9 9 9 9 10 9 10 9 9 9 9 9 9 13 14 14 14 Final Capacity 25 | 8 25 25 25 15 10 10 10 10 10 10 10 10 10 10 10 10 10 5 10 15 15 15 15 Final Carried 25 | 4 22 25 25 15 10 10 9 10 10 10 10 10 10 10 10 10 10 4 9 15 15 15 15 Class Distribution -------------------- 56% | Mutant 17% | Hacker-Scout 8% | Wizard-Scout 6% | Hacker-Mutant 3% | Hacker-Sprinter Dominant Class ---------------- Mutant | -10/Materials Mutant | -10/Subcaves Mutant | -7/Recycling Mutant | -7/Scraptown Hacker-Mutant | -5/Factory Hacker-Mutant | -5/Waste Hacker-Scout | -5/Factory Hacker-Scout | -5/Upper Caves Hacker-Mutant | -5/Upper Caves Hacker-Sprinter | -5/Warlord Hacker-Sprinter | -4/Proximity Caves Hacker-Scout | -4/Factory Hacker-Scout | -4/Waste Hacker-Scout | -4/Factory Hacker-Scout | -4/Extension Commander-Scout | -4/Cetus Commander-Scout | -4/Archives Commander-Scout | -4/Hub_04(d) Hacker-Scout | -3/Research Wizard-Scout | -3/Quarantine Wizard-Scout | -2/Research Wizard-Scout | -2/Testing Hacker-Scout | -2/Protoforge Resources | -11 -10 -10 -7 -7 -5 -5 -5 -5 -5 -5 -4 -4 -4 -4 -4 -4 -4 -4 -3 -3 -2 -2 -2 ----------- Run | Yrd Mat Sub Rec Scr Fac Was Fac Upp Upp War Pro Fac Was Fac Ext Cet Arc Hub Res Qua Res Tes Frg Matter Collected 4308 | 270 424 107 10 100 152 . 105 40 138 . 58 199 11 178 78 50 20 . 445 124 97 478 1224 Remotely . | . . . . . . . . . . . . . . . . . . . . . . . . Salvage Created 4511 | 96 524 52 348 . 179 . 112 . . . . 315 . 100 . 57 174 19 506 124 97 285 1523 Parts 277 | 13 43 4 8 . 18 . 7 . . . . 21 . 7 . 2 15 3 35 6 2 15 78 Haulers Intercepted 6 | . 1 . . . . . 1 . . . . 2 . . . . . . 1 1 . . . Recyclers Shooed 3 | . . . 2 . 1 . . . . . . . . . . . . . . . . . . Parts Field Recycled . | . . . . . . . . . . . . . . . . . . . . . . . . Retrieved Matter . | . . . . . . . . . . . . . . . . . . . . . . . . Parts Self-Destructed 30 | . . 21 . . . . . . . . 9 . . . . . . . . . . . . Prevented 17 | . . . . . . . . . 11 . 6 . . . . . . . . . . . . Kills | -11 -10 -10 -7 -7 -5 -5 -5 -5 -5 -5 -4 -4 -4 -4 -4 -4 -4 -4 -3 -3 -2 -2 -2 ------- Run | Yrd Mat Sub Rec Scr Fac Was Fac Upp Upp War Pro Fac Was Fac Ext Cet Arc Hub Res Qua Res Tes Frg Combat Hostiles Destroyed 56 | . 14 . 1 . 3 . 1 . . . . 6 . 1 . 1 . . 8 . . . 21 Melee 13 | . . . . . 3 . 1 . . . . . . . . . . . . . . . 9 Guns 26 | . 14 . . . . . . . . . . . . 1 . . . . . . . . 11 AOE 15 | . . . . . . . . . . . . 6 . . . . . . 8 . . . 1 Classes Destroyed 20 | 2 4 2 2 . 3 . . . . . . 1 . . . . 1 . . . . . 5 Worker 3 | 1 . . . . 1 . . . . . . . . 1 . . . . . . . . . Builder 6 | . . . . . 1 . . . . . . . . . . . . . 3 . . 1 1 Tunneler 5 | 4 . . . . . . . . . . . 1 . . . . . . . . . . . Hauler 7 | . 1 . . . . . 1 . . . . 2 . . . . . . 1 1 . . 1 Recycler 7 | . . . 4 . . . . . . . . . . . . . . . 1 . . 2 . Operator 10 | . . . . . . . . . . . . . . . . . 5 1 2 1 . . 1 Drone 7 | . . . . . 1 . . . . . . . . . . . . . . . . . 6 Turret 1 | . . 1 . . . . . . . . . . . . . . . . . . . . . Watcher 7 | . 2 . . . 1 . . . . . . . . . . . . . . . 2 1 1 Swarmer 20 | . 6 . . . . . 1 . . . . 5 . . . . . . 8 . . . . Cutter 1 | . . . . . . . . . . . . 1 . . . . . . . . . . . Grunt 10 | . 8 . . . . . . . . . . . . . . . . . . . . . 2 Researcher 1 | . . . . . . . . . . . . . . . . . . . . . . . 1 Sentry 3 | . . . 1 . . . . . . . . . . 1 . . . . . . . . 1 Programmer 3 | . . . . . 2 . . . . . . . . . . . . . . . . . 1 Behemoth 1 | . . . . . . . . . . . . . . . . . . . . . . . 1 Cetus Guard 1 | . . . . . . . . . . . . . . . . 1 . . . . . . . Hotshot 3 | . . . . . . . . . . . . . . . . . . . . . . . 3 Decapitator 4 | . . . . . . . . . . . . . . . . . . . . . . . 4 Striker 1 | . . . . . . . . . . . . . . . . . . . . . . . 1 Executioner 1 | . . . . . . . . . . . . . . . . . . . . . . . 1 Alpha 7 1 | . . . . . . . . . . . . . . . . . . . . . . . 1 Artisan 2 | . . 2 . . . . . . . . . . . . . . . . . . . . . Wizard 1 | . . . . . . . . . . . . 1 . . . . . . . . . . . Best Kill Streak 6 | 3 2 1 5 . 3 . 1 . . . . 6 . 1 . 1 5 1 6 1 1 1 6 Combat Bots Only 6 | . 2 . 1 . 2 . 1 . . . . 6 . 1 . 1 . . 5 . . . 5 Max Kills in Single Turn 4 | 2 1 1 1 . 2 . 1 . . . . 4 . 1 . 1 1 1 3 1 1 1 2 Gunslinging . | . . . . . . . . . . . . . . . . . . . . . . . . Exploded 4 | . . . . . . . . . . . . 4 . . . . . . 3 . . . 1 Melee 1 | . . . . . 1 . 1 . . . . . . . . . . . . . . . 1 Uniques/NPCs Destroyed . | . . . . . . . . . . . . . . . . . . . . . . . . Combat | -11 -10 -10 -7 -7 -5 -5 -5 -5 -5 -5 -4 -4 -4 -4 -4 -4 -4 -4 -3 -3 -2 -2 -2 -------- Run | Yrd Mat Sub Rec Scr Fac Was Fac Upp Upp War Pro Fac Was Fac Ext Cet Arc Hub Res Qua Res Tes Frg Hostile Shots Fired 862 | . 88 31 . . 24 1 61 2 3 . 2 39 . 18 77 . . 55 23 8 25 30 375 Missed 330 | . 24 11 . . 10 1 37 2 . . 1 13 . 11 29 . . 18 9 3 14 17 130 Hits 532 | . 64 20 . . 14 . 24 . 3 . 1 26 . 7 48 . . 37 14 5 11 13 245 Melee 21 | . . . . . . . . . . . . 6 . . . . . . . . . . 15 Projectile 511 | . 64 20 . . 14 . 24 . 3 . 1 20 . 7 48 . . 37 14 5 11 13 230 AOE 5 | . . . . . . . . . . 1 . 1 . 1 . . . . . . . . 2 Critical Strikes 37 | . 1 . . . . . 1 . . . . 3 . . 2 1 . 6 . . 1 . 22 Actively Blocked 1 | . . . . . . . . . . . . . . . 1 . . . . . . . . Part Disruptions 2 | . . . . . . . . . . . . . . . . . . . . . . . 2 Damage Taken 13783 | . 646 245 26 . 402 . 420 . 81 4 18 872 . 280 1020 154 . 1021 430 197 253 323 7391 Core 2125 | . 131 56 5 . 16 . 39 . 33 2 . 70 . 54 16 112 . 198 46 48 41 . 1258 Absorbed by Shields 18 | . . . . . . . . . . 4 . . . . . 14 . . . . . . . Redirected to Shielding 88 | . . . . . . . . . . . . 18 . 47 23 . . . . . . . . Regen/Repaired (Parts) 1366 | . . . . . . . . . . 1 . 113 . . . . . . 190 380 . 156 526 Core Remaining (%) 73 | 100 . . . 23 . . . . . . 91 . . . . . . 60 . 92 . . . Volleys Fired 343 | 12 71 47 12 . 5 . 14 3 3 2 6 27 . 41 7 3 . . 11 2 8 5 64 Largest 2 | 2 2 2 1 . 1 . 1 1 1 1 1 1 . 1 1 1 . . 1 1 1 1 2 Hottest 260 | 40 40 70 80 . 30 . 30 30 30 260 30 260 . 105 260 105 . . 52 90 120 120 120 Shots Fired 477 | 24 142 48 11 . 5 . 14 3 3 2 6 27 . 41 7 3 . . 11 2 8 5 115 Gun 411 | 24 142 48 3 . 5 . 14 3 3 1 6 25 . 34 . . . . . . . . 103 Cannon 47 | . . . 8 . . . . . . . . . . 7 6 3 . . . 2 8 5 8 Launcher 19 | . . . . . . . . . . 1 . 2 . . 1 . . . 11 . . . 4 Special . | . . . . . . . . . . . . . . . . . . . . . . . . Kinetic 363 | 24 142 2 . . 5 . 14 3 3 1 6 25 . 34 . . . . . . . . 104 Thermal 99 | . . 46 11 . . . . . . 1 . 2 . 7 7 3 . . . 2 8 5 7 Explosive 15 | . . . . . . . . . . . . . . . . . . . 11 . . . 4 Electromagnetic . | . . . . . . . . . . . . . . . . . . . . . . . . Robot Hit Streak 18 | 7 13 18 4 . . . . . . . . 14 . 15 1 1 . . . . . . 12 Robot Miss Streak 7 | 3 7 4 5 . . . . . 1 . 2 3 . 4 4 1 . . . . . . 4 Penetration Max 2 | . . . . . . . . . . . . 1 . 1 . . . . . . . . 2 Secondary Targets 1 | . 1 . . . . . . . . . . . . . . . . . . . . . . Max Gunslinging Chain 1 | . 1 . . . . . . . . . . . . . . . . . . . . . . Shots Hit Robots 271 | 14 86 5 8 2 9 . 5 . . . . 15 . 4 2 2 8 1 16 3 4 4 83 Core Hits 143 | 7 33 3 4 . 3 . 3 . . . . 9 . 3 2 . 5 1 13 2 3 4 48 Critical Kills 8 | . 1 . 1 . . . . . . . . 1 . 1 . 1 . . . . . . 3 Critical Parts Destroyed 5 | . . . . . . . . . . . . . . 1 . . . . . . . . 4 Critical Strikes 19 | . 1 . 1 . 3 . . . . . . 1 . 2 . 1 . . . 1 . . 9 Meltdown 1 | . . . . . . . . . . . . . . . . 1 . . . . . . . Destroy 12 | . 1 . 1 . . . . . . . . 1 . 2 . . . . . . . . 7 Sever 2 | . . . . . . . . . . . . . . . . . . . . . . . 2 Impale 4 | . . . . . 3 . . . . . . . . . . . . . . 1 . . . Melee Attacks 287 | . . . . 2 40 . 34 2 4 1 1 15 . . 4 . 9 10 30 21 29 24 61 Impact . | . . . . . . . . . . . . . . . . . . . . . . . . Slashing 100 | . . . . . . . . . . . . . . . 4 . 8 10 6 . . 11 61 Piercing 183 | . . . . . 40 . 34 2 4 1 1 15 . . . . . . 24 21 29 12 . Sneak Attacks 36 | . . . . 2 2 . 2 . . . . 1 . . 1 . 6 . 8 2 1 3 8 Combat Hostiles . | . . . . . . . . . . . . . . . . . . . . . . . . Follow-up Attacks . | . . . . . . . . . . . . . . . . . . . . . . . . Damage Inflicted 13283 | 135 832 99 231 . 548 . 301 . . . . 1251 . 204 279 70 602 50 2434 252 213 396 5386 Guns 4112 | 135 828 99 65 . . . . . . . . 439 . 197 . . . . . . . . 2349 Cannons 330 | . . . 166 . . . . . . . . . . . 34 70 . . . . . . 60 Explosions 2833 | . . . . . 175 . 36 . . . . 729 . 7 200 . . . 1288 . . . 398 Melee 5999 | . . . . . 373 . 265 . . . . 83 . . 45 . 602 50 1146 252 213 396 2574 Ramming 9 | . 4 . . . . . . . . . . . . . . . . . . . . . 5 Kinetic 4008 | 135 828 . . . . . . . . . . 439 . 197 . . . . . . . . 2409 Thermal 1581 | . . 99 231 . 175 . 36 . . . . 729 . 7 234 70 . . . . . . . Explosive 1686 | . . . . . . . . . . . . . . . . . . . 1288 . . . 398 Electromagnetic . | . . . . . . . . . . . . . . . . . . . . . . . . Impact . | . . . . . . . . . . . . . . . . . . . . . . . . Slashing 3787 | . . . . . . . . . . . . . . . 45 . 602 50 304 . . 212 2574 Piercing 2212 | . . . . . 373 . 265 . . . . 83 . . . . . . 842 252 213 184 . Highest Corruption 28 | . . . . . 3 5 5 . . . . . . . . . . 10 . . . . 28 Average Corruption 9 | . . . . . 2 5 4 . . . . . . . . . . 6 . . . . 12 Corruption Purged 8 | . . . . . 3 . 5 . . . . . . . . . . . . . . . . Corruption Blocked . | . . . . . . . . . . . . . . . . . . . . . . . . Effects 39 | . . . . . 3 1 3 . . . . . . . . . . . . . . . 32 Message Errors 11 | . . . . . . . 1 . . . . . . . . . . . . . . . 10 Matter Fused 4 | . . . . . . . . . . . . . . . . . . . . . . . 4 Heat Flow Errors 6 | . . . . . 1 . . . . . . . . . . . . . . . . . 5 Energy Discharges 3 | . . . . . . . 1 . . . . . . . . . . . . . . . 2 Parts Fused 1 | . . . . . . . . . . . . . . . . . . . . . . . 1 Data Loss (minor) 2 | . . . . . . . . . . . . . . . . . . . . . . . 2 Data Loss (major) 2 | . . . . . 1 . 1 . . . . . . . . . . . . . . . . Misfires 1 | . . . . . . . . . . . . . . . . . . . . . . . 1 Alerts 3 | . . . . . 1 1 . . . . . . . . . . . . . . . . 1 Misdirections 2 | . . . . . . . . . . . . . . . . . . . . . . . 2 Weapon Failures 4 | . . . . . . . . . . . . . . . . . . . . . . . 4 Overload Shots . | . . . . . . . . . . . . . . . . . . . . . . . . Overflow Damage 1447 | . . . 9 . 209 . 6 . . . . 194 . . . . 93 . 431 . 16 . 489 Projectiles 9 | . . . 9 . . . . . . . . . . . . . . . . . . . . Explosions 477 | . . . . . 62 . 6 . . . . 194 . . . . . . 120 . . . 95 Melee 961 | . . . . . 147 . . . . . . . . . . . 93 . 311 . 16 . 394 Knockbacks 1 | . . . . . . . . . . . . . . . . . . . . . . . 1 Impact . | . . . . . . . . . . . . . . . . . . . . . . . . Kinetic 1 | . . . . . . . . . . . . . . . . . . . . . . . 1 Secondary . | . . . . . . . . . . . . . . . . . . . . . . . . Self-Inflicted Damage 541 | . . . . . 64 . 53 . . . . 55 . 92 . . . . 116 . . . 161 Shots 9 | . . . . . 1 . 1 . . . . 1 . 2 . . . . 2 . . . 2 Rammed 2 | . 1 . . . . . . . . . . . . . . . . . . . . . 1 Targets Rammed 2 | . 1 . . . . . . . . . . . . . . . . . . . . . 1 Kicked . | . . . . . . . . . . . . . . . . . . . . . . . . Crushed . | . . . . . . . . . . . . . . . . . . . . . . . . Highest Temperature 432 | . 78 3 225 . 214 5 13 . . 208 . 432 . 187 284 98 . 22 280 . 253 213 245 Average Temperature 65 | . 21 3 97 . 90 5 7 . . 100 . 119 . 79 87 45 . 18 76 . 43 48 81 Received Heat Transfer 1630 | . 225 66 . . 27 . 54 . 12 . . 106 . 30 159 . . 147 12 36 63 36 657 Effects 7 | . . . . . . . . . . . . 2 . . . . . . . . 2 . 3 Shutdowns 2 | . . . . . . . . . . . . 2 . . . . . . . . . . . Interference 5 | . . . . . . . . . . . . . . . . . . . . . 2 . 3 Siege Activations . | . . . . . . . . . . . . . . . . . . . . . . . . Martial Activations . | . . . . . . . . . . . . . . . . . . . . . . . . Shielding Activations . | . . . . . . . . . . . . . . . . . . . . . . . . Robots Disrupted . | . . . . . . . . . . . . . . . . . . . . . . . . Combat Hostiles . | . . . . . . . . . . . . . . . . . . . . . . . . Robots Corrupted . | . . . . . . . . . . . . . . . . . . . . . . . . Combat Hostiles . | . . . . . . . . . . . . . . . . . . . . . . . . Parts Fried . | . . . . . . . . . . . . . . . . . . . . . . . . Impact Corruptions . | . . . . . . . . . . . . . . . . . . . . . . . . Robots Melted 2 | . . . 1 . . . . . . . . . . . . 1 . . . . . . . Combat Hostiles 2 | . . . 1 . . . . . . . . . . . . 1 . . . . . . . Parts Melted 4 | . . . 1 . . . . . . . . 1 . . . 1 . . . . . . 1 Heat Transferred 1975 | . . 137 297 . 150 . 50 . . . . 810 . 100 357 74 . . . . . . . Parts Sabotaged . | . . . . . . . . . . . . . . . . . . . . . . . . Parts Stolen . | . . . . . . . . . . . . . . . . . . . . . . . . Parts Stripped . | . . . . . . . . . . . . . . . . . . . . . . . . Power Chain Reactions 3 | . . . . . . . 3 . . . . . . . . . . . . . . . . Alert | -11 -10 -10 -7 -7 -5 -5 -5 -5 -5 -5 -4 -4 -4 -4 -4 -4 -4 -4 -3 -3 -2 -2 -2 ------- Run | Yrd Mat Sub Rec Scr Fac Was Fac Upp Upp War Pro Fac Was Fac Ext Cet Arc Hub Res Qua Res Tes Frg Maximum Alert Level 2 | . . . . . 1 . 2 . . . . 2 . 2 1 1 1 2 2 . 2 1 2 Low Security (%) 66 | 100 100 . 100 . 62 100 13 . . . . 17 100 50 62 10 20 58 9 100 77 94 55 Level 1 24 | . . . . . 37 . 35 . . . . 60 . 32 37 89 80 12 61 . 18 5 31 Level 2 9 | . . . . . . . 51 . . . . 22 . 17 . . . 28 28 . 4 . 13 Level 3 . | . . . . . . . . . . . . . . . . . . . . . . . . Level 4 . | . . . . . . . . . . . . . . . . . . . . . . . . Level 5 . | . . . . . . . . . . . . . . . . . . . . . . . . High Security . | . . . . . . . . . . . . . . . . . . . . . . . . Max Security . | . . . . . . . . . . . . . . . . . . . . . . . . Peak Influence 630 | 10 108 . 66 . 396 127 569 . . . . 575 193 497 295 363 337 607 568 177 496 283 630 Initial 267 | . . . 66 . . 127 67 . . . . 147 193 86 70 151 113 107 252 128 22 267 62 Average 158 | 2 35 . 15 . 147 118 359 . . . . 324 159 254 146 264 281 261 329 102 151 81 190 Influence Increases 11107 | 25 459 255 109 . 612 . 803 45 150 68 384 999 . 1105 831 372 264 795 971 350 826 382 1302 Destroy 0b10 Robot/C 3080 | . 280 120 20 . 40 . 20 . 80 40 220 340 . 260 440 160 80 240 240 . 180 . 320 Destroy 0b10 Robot/NC 380 | 25 15 . 20 . 20 . 5 . . . 10 30 . 45 20 10 25 25 40 10 15 20 45 Destroy Leader 472 | . 66 . . . 12 . 2 . 20 . 20 56 . 70 32 . . 62 42 2 34 2 52 Allied During Kill 1112 | . . 60 5 . . . . . 35 28 119 72 . 107 142 170 105 245 16 . 8 . . Trap Triggered on 0b10 80 | . . . . . . . 10 . . . . . . . . . . . . . . . 70 Successful Hack 505 | . 8 . . . 47 . 20 . . . . 41 . 29 20 . . 54 105 25 64 36 56 Select Force Hacks 290 | . 30 . 60 . . . 50 . . . . 50 . . . . . 100 . . . . . Disable Machine 765 | . . . . . 60 . 105 . . . . 90 . 75 . . 30 . 75 60 15 45 210 Destroy Structure 1693 | . . . 4 . 118 . 156 . . . . 170 . 234 42 32 24 54 318 28 240 54 219 Partial Spotted 615 | . . . . . 30 . 60 . . . . 30 . 45 . . . . 15 135 165 60 75 Lose Combat Pursuer 2115 | . 60 75 . . 285 . 375 45 15 . 15 120 . 240 135 . . 15 120 90 105 165 255 Influence Decreases 10538 | 25 417 159 247 . 249 266 492 222 205 184 210 679 431 1083 705 360 240 620 1224 539 390 747 844 Entered New Map 2449 | . . 21 72 . . 236 30 152 45 176 60 87 361 37 75 120 170 200 230 101 18 209 49 Time Decay 4465 | 25 387 63 153 . 239 10 302 70 140 8 130 222 70 286 414 190 70 90 294 278 222 287 515 Search Patrol Dispatched 150 | . . . . . . . 150 . . . . . . . . . . . . . . . . Lost Part 470 | . 30 . . . 10 . 10 . . . . 20 . . 10 10 . 60 20 10 10 . 280 Lost Ally 1113 | . . 75 22 . . 20 . . 20 . 20 200 . 160 206 40 . 120 80 . 140 10 . Purge Threat 1891 | . . . . . . . . . . . . 150 . 600 . . . 150 600 150 . 241 . Squads Dispatched 95 | . 5 . . . 5 . 9 . . . . 11 . 13 2 . . 5 10 3 12 10 10 Investigation 42 | . 2 . . . 2 . 6 . . . . 3 . 9 . . . 3 7 . 4 1 5 Extermination 17 | . . . . . 2 . 2 . . . . 2 . 2 . . . . . 2 2 3 2 Reinforcement 32 | . 3 . . . 1 . 1 . . . . 6 . 2 2 . . 1 3 1 5 4 3 Assault 2 | . . . . . . . . . . . . . . . . . . . . . . 2 . Garrison 2 | . . . . . . . . . . . . . . . . . . 1 . . 1 . . Intercept . | . . . . . . . . . . . . . . . . . . . . . . . . Searches Triggered 1 | . . . . . . . 1 . . . . . . . . . . . . . . . . Construction Impeded 6 | . . . . . 1 . 1 . . . . . . 1 1 . . . 1 . 1 . . Haulers Reinforced 2 | . . . . . . . . . . . . 1 . . . . . . . 1 . . . Active Scanning Responses . | . . . . . . . . . . . . . . . . . . . . . . . . Cargo Convoy Interrupts . | . . . . . . . . . . . . . . . . . . . . . . . . Stealth | -11 -10 -10 -7 -7 -5 -5 -5 -5 -5 -5 -4 -4 -4 -4 -4 -4 -4 -4 -3 -3 -2 -2 -2 --------- Run | Yrd Mat Sub Rec Scr Fac Was Fac Upp Upp War Pro Fac Was Fac Ext Cet Arc Hub Res Qua Res Tes Frg Distress Signals 35 | . 6 . . . 1 . 2 . . . . 2 . 5 2 1 . 6 3 . 2 1 4 Communications Jammed . | . . . . . . . . . . . . . . . . . . . . . . . . Distress Signals . | . . . . . . . . . . . . . . . . . . . . . . . . Times Spotted 428 | . 32 23 1 . 26 5 28 4 3 2 14 28 . 39 29 9 7 24 20 10 24 23 77 Peak Tracking Total 18 | . 3 6 1 . 5 5 10 3 2 1 6 10 . 12 9 5 2 18 5 3 11 9 14 Tactical Retreats 68 | . 3 3 . . 11 . 13 1 1 . 1 2 . 5 3 . . 1 3 3 6 5 7 Traps | -11 -10 -10 -7 -7 -5 -5 -5 -5 -5 -5 -4 -4 -4 -4 -4 -4 -4 -4 -3 -3 -2 -2 -2 ------- Run | Yrd Mat Sub Rec Scr Fac Was Fac Upp Upp War Pro Fac Was Fac Ext Cet Arc Hub Res Qua Res Tes Frg Traps Triggered 18 | . 1 1 . . 2 . 3 . . . . 1 . 2 . . . . . 1 1 1 5 Indirectly . | . . . . . . . . . . . . . . . . . . . . . . . . Trap Hack Attempts . | . . . . . . . . . . . . . . . . . . . . . . . . Triggered . | . . . . . . . . . . . . . . . . . . . . . . . . Disarmed . | . . . . . . . . . . . . . . . . . . . . . . . . Reprogrammed 17 | . . . . . . . 1 . . . . . . . . . . . 3 . 6 . 7 Reused 8 | . . . . . . . 1 . . . . . . . . . . . . . . . 7 Traps Extracted . | . . . . . . . . . . . . . . . . . . . . . . . . Installed . | . . . . . . . . . . . . . . . . . . . . . . . . Triggered 8 | . . . . . . . 1 . . . . . . . . . . . . . . . 7 Machines | -11 -10 -10 -7 -7 -5 -5 -5 -5 -5 -5 -4 -4 -4 -4 -4 -4 -4 -4 -3 -3 -2 -2 -2 ---------- Run | Yrd Mat Sub Rec Scr Fac Was Fac Upp Upp War Pro Fac Was Fac Ext Cet Arc Hub Res Qua Res Tes Frg Machines Disabled 59 | . . 3 . . 4 . 7 . . 1 1 6 . 5 . . 2 . 5 4 1 3 17 Max in Single Turn 5 | . . 1 . . 3 . 5 . . 1 . 2 . 3 . . . . 2 1 . 1 2 Garrison Access 6 | . . . . . . . . . . . . . . 1 . . . . 2 1 . 1 1 Network Hub 2 | . . . . . . . . . . . . . . . . . . 2 . . . . . Machines Repaired . | . . . . . . . . . . . . . . . . . . . . . . . . Machines Dismantled . | . . . . . . . . . . . . . . . . . . . . . . . . Machines Sabotaged 3 | . . . . . . . . . . . . 1 . . . . . 2 . . . . . Overloaded Fab Kills 6 | . . . . . . . 6 . . . . . . . . . . . . . . . . Hacking | -11 -10 -10 -7 -7 -5 -5 -5 -5 -5 -5 -4 -4 -4 -4 -4 -4 -4 -4 -3 -3 -2 -2 -2 --------- Run | Yrd Mat Sub Rec Scr Fac Was Fac Upp Upp War Pro Fac Was Fac Ext Cet Arc Hub Res Qua Res Tes Frg Machines Accessed 148 | . 5 2 4 2 12 . 13 1 1 6 . 7 . 17 9 1 . 10 14 10 9 10 15 Terminals 70 | . 2 . . . 4 . 3 . . . . 3 . 7 9 1 . 10 6 6 4 5 10 Fabricators 12 | . . . . . 3 . 2 . . . . 1 . 4 . . . . 1 . . 1 . Repair Stations 11 | . 1 . . . 2 . 1 . . . . 1 . 1 . . . . 1 1 1 2 . Recycling Units 29 | . 2 . 4 . 2 . 5 . . . . 1 . 4 . . . . 4 . 4 . 3 Scanalyzers 6 | . . . . . 1 . 1 . . . . . . . . . . . . 2 . 1 1 Garrison Access 8 | . . . . . . . 1 . . . . 1 . 1 . . . . 2 1 . 1 1 Total Hacks 606 | . 11 13 14 17 38 . 46 1 1 15 . 22 . 66 24 1 . 35 76 64 45 53 64 Successful 381 | . 8 13 6 17 18 . 19 1 1 15 . 11 . 36 12 1 . 23 49 43 31 43 34 Failed 222 | . 3 . 8 . 20 . 27 . . . . 11 . 30 11 . . 12 26 20 14 10 30 Catastrophic 32 | . . . . . 4 . 8 . . . . 3 . 1 . . . 1 4 3 2 1 5 Database Lockouts 3 | . . . . . . . . . . . . . . . 1 . . . 1 1 . . . Manual 263 | . 6 . 6 . 15 . 15 . . . . 8 . 31 9 1 . 24 42 30 19 28 29 Terminals 365 | . 6 . . . 17 . 14 . . . . 11 . 38 24 1 . 35 52 45 30 40 52 Fabricators 34 | . . . . . 6 . 3 . . . . 1 . 13 . . . . 4 . . 7 . Repair Stations 35 | . 2 . . . 4 . 8 . . . . 3 . 3 . . . . 4 6 2 3 . Recycling Units 82 | . 3 . 14 . 4 . 14 . . . . 4 . 9 . . . . 12 . 13 . 9 Scanalyzers 25 | . . . . . 7 . 5 . . . . . . . . . . . . 10 . 2 1 Garrison Access 18 | . . . . . . . 2 . . . . 3 . 3 . . . . 4 3 . 1 2 Terminal Hacks 202 | . 1 13 . 17 1 . 4 1 1 15 . 4 . 13 8 1 . 11 24 17 17 27 27 Record 45 | . . 12 . 17 . . . . . 8 . . . . . . . . . . 1 1 6 Part Schematic 9 | . . . . . . . . . . . . 1 . . . . . . 2 2 2 . 2 Robot Analysis 13 | . . . . . . . . . . . . . . . 1 . . 1 2 . 1 7 1 Prototype ID Bank 20 | . . . . . . . 1 . . 5 . . . 3 1 . . 2 1 2 2 2 1 Open Door 10 | . . . . . . . . 1 1 2 . . . . 5 1 . . . . . . . Level Access Points 3 | . . . . . . . . . . . . . . . . . . 1 . 1 . . 1 Branch Access Points 3 | . . . . . . . . . . . . . . 1 . . . . . . 1 1 . Machine Index 5 | . . . . . . . . . . . . . . . . . . 1 1 1 . 1 1 Terminal Index 6 | . . . . . 1 . 1 . . . . 1 . 1 . . . 1 . 1 . . . Fabricator Index 1 | . . . . . . . . . . . . . . . . . . . . . 1 . . Repair Station Index 1 | . . . . . . . . . . . . . . . . . . . . . . . 1 Scanalyzer Index 1 | . . . . . . . . . . . . . . . . . . . . 1 . . . Garrison Index 2 | . . . . . . . . . . . . . . . . . . . 1 . . . 1 Alert Level 13 | . . . . . . . . . . . . 1 . 1 1 . . 1 3 2 1 2 1 Unreport Threat 10 | . . . . . . . . . . . . 1 . 1 . . . 1 4 1 . 2 . Locate Traps 13 | . 1 . . . . . . . . . . . . 2 . . . . 3 2 2 . 3 Reprogram Traps 7 | . . . . . . . 1 . . . . . . . . . . . 1 . 1 1 3 Surveillance Status 1 | . . . . . . . . . . . . . . . . . . . . . . . 1 Patrol Status 1 | . . . . . . . . . . . . . . . . . . . . . . . 1 Recall Investigation 3 | . . . . . . . . . . . . . . 2 . . . . . . . 1 . Recall Extermination 4 | . . . . . . . . . . . . . . . . . . . . 2 . 1 1 Recall Reinforcements 3 | . . . . . . . . . . . . . . 1 . . . . . . . 2 . Hauler Manifests 3 | . . . . . . . . . . . . . . . . . . . 2 . . 1 . Registered Components 3 | . . . . . . . . . . . . . . . . . . . 1 1 1 . . Registered Prototypes 4 | . . . . . . . . . . . . . . . . . . 1 1 . 1 1 . Zone Layout 14 | . . . . . . . 1 . . . . . . 1 . . . 2 2 1 3 2 2 Proto ID Catalog 2 | . . 1 . . . . . . . . . . . . . . . . . . . . 1 Protovariant Controls 2 | . . . . . . . . . . . . . . . . . . . . . . 2 . Fabricator Hacks 15 | . . . . . 3 . . . . . . 1 . 6 . . . . 2 . . 3 . Network Status 4 | . . . . . 1 . . . . . . 1 . 1 . . . . . . . 1 . Load Schematic 5 | . . . . . . . . . . . . . . 3 . . . . 1 . . 1 . Build 6 | . . . . . 2 . . . . . . . . 2 . . . . 1 . . 1 . Repair Station Hacks 22 | . 1 . . . 3 . 2 . . . . 2 . . . . . . 3 6 2 3 . Scan Component 11 | . 1 . . . 1 . 1 . . . . 1 . . . . . . 1 3 2 1 . Repair 8 | . . . . . 1 . 1 . . . . 1 . . . . . . 1 3 . 1 . Refit 3 | . . . . . 1 . . . . . . . . . . . . . 1 . . 1 . Recycling Unit Hacks 24 | . 2 . 4 . 1 . 3 . . . . 1 . 4 . . . . 5 . 4 . . Retrieve Components 24 | . 2 . 4 . 1 . 3 . . . . 1 . 4 . . . . 5 . 4 . . Scanalyzer 18 | . . . . . 6 . 3 . . . . . . . . . . . . 8 . 1 . Insert Component 13 | . . . . . 3 . 2 . . . . . . . . . . . . 7 . 1 . Analyze 5 | . . . . . 3 . 1 . . . . . . . . . . . . 1 . . . Garrison Access Hacks 6 | . . . . . . . . . . . . . . 1 . . . . 2 1 . 1 1 Seal Access 6 | . . . . . . . . . . . . . . 1 . . . . 2 1 . 1 1 Unauthorized Hacks 94 | . 4 . 2 . 4 . 7 . . . . 3 . 12 4 . . 12 13 11 8 8 6 Terminals 58 | . 3 . . . 2 . 1 . . . . 2 . 4 4 . . 12 8 10 4 6 2 Track 15 | . . . . . . . . . . . . . . 1 . . . 6 2 2 . 2 2 Assimilate 1 | . . . . . . . . . . . . . . . . . . . . . . 1 . Botnet 18 | . 1 . . . 2 . 1 . . . . 1 . 2 2 . . 2 1 3 1 2 . Disrupt 3 | . . . . . . . . . . . . . . . 2 . . . . . . 1 . Operators 2 | . 1 . . . . . . . . . . . . 1 . . . . . . . . . Skim 15 | . 1 . . . . . . . . . . . . . . . . 1 5 5 3 . . Sabotage 4 | . . . . . . . . . . . . 1 . . . . . 3 . . . . . Fabricators 6 | . . . . . . . 1 . . . . . . 3 . . . . 1 . . 1 . Prioritize 3 | . . . . . . . . . . . . . . 1 . . . . 1 . . 1 . Haulers 1 | . . . . . . . . . . . . . . 1 . . . . . . . . . Overload 1 | . . . . . . . 1 . . . . . . . . . . . . . . . . Recompile 1 | . . . . . . . . . . . . . . 1 . . . . . . . . . Repair Stations 1 | . . . . . . . . . . . . . . 1 . . . . . . . . . Patch 1 | . . . . . . . . . . . . . . 1 . . . . . . . . . Recycling Units 26 | . 1 . 2 . 2 . 5 . . . . 1 . 4 . . . . 4 . 4 . 3 Tunnel 3 | . 1 . 2 . . . . . . . . . . . . . . . . . . . . Fedlink 22 | . . . . . 2 . 5 . . . . 1 . 4 . . . . 4 . 3 . 3 Scraphulk 1 | . . . . . . . . . . . . . . . . . . . . . 1 . . Scanalyzers 3 | . . . . . . . . . . . . . . . . . . . . 1 . 1 1 Researchers 3 | . . . . . . . . . . . . . . . . . . . . 1 . 1 1 Garrison Access . | . . . . . . . . . . . . . . . . . . . . . . . . Data Cores Recovered 5 | . . . . . . . . . . . . . . 1 . . . 1 1 1 . . 1 Used 2 | . . . . . . . . . . . . . . . . . . 1 . 1 . . . Hacking Detections 101 | . 5 . 3 . 8 . 11 . . . . 6 . 13 5 . . 7 9 10 7 6 11 Full Trace Events 8 | . . . 2 . . . . . . . . 1 . 3 . . . . 1 . . 1 . Feedback Events . | . . . . . . . . . . . . . . . . . . . . . . . . Feedback Blocked . | . . . . . . . . . . . . . . . . . . . . . . . . Robot Schematics Acquired 1 | . . . . . . . . . . . . . . . . . . . . . . . 1 Robots Built . | . . . . . . . . . . . . . . . . . . . . . . . . Authchips . | . . . . . . . . . . . . . . . . . . . . . . . . Time . | . . . . . . . . . . . . . . . . . . . . . . . . Total Robot Build Rating . | . . . . . . . . . . . . . . . . . . . . . . . . Part Schematics Acquired 24 | . . . . . 2 . 1 . . . . 1 . . . . . . 2 3 2 9 4 Parts Built 7 | . . . . . 3 . . . . . . . . 2 . . . . 1 . . 1 . Authchips . | . . . . . . . . . . . . . . . . . . . . . . . . Time 483 | . . . . . 241 . . . . . . . . 159 . . . . 46 . . 37 . Total Part Build Rating 54 | . . . . . 26 . . . . . . . . 12 . . . . 7 . . 9 . Parts Repaired 8 | . . . . . 1 . 1 . . . . 1 . . . . . . 1 3 . 1 . Time 645 | . . . . . 78 . 68 . . . . 89 . . . . . . 36 266 . 108 . Parts Recycled . | . . . . . . . . . . . . . . . . . . . . . . . . Recycled Matter . | . . . . . . . . . . . . . . . . . . . . . . . . Retrieved Matter . | . . . . . . . . . . . . . . . . . . . . . . . . Retrieved Components 69 | . 10 . 27 . 3 . 4 . . . . 3 . 5 . . . . 15 . 2 . . Parts Scanalyzed 5 | . . . . . 2 . 1 . . . . . . . . . . . . 2 . . . Part Schematics Acquired 4 | . . . . . 2 . 1 . . . . . . . . . . . . 1 . . . Parts Damaged 2 | . . . . . 1 . 1 . . . . . . . . . . . . . . . . Bothacking | -11 -10 -10 -7 -7 -5 -5 -5 -5 -5 -5 -4 -4 -4 -4 -4 -4 -4 -4 -3 -3 -2 -2 -2 ------------ Run | Yrd Mat Sub Rec Scr Fac Was Fac Upp Upp War Pro Fac Was Fac Ext Cet Arc Hub Res Qua Res Tes Frg Used RIF Installer . | . . . . . . . . . . . . . . . . . . . . . . . . Robots Hacked 3 | . . . . 2 . . . . . . . . . . . . 1 . . . . . . Non-combat 1 | . . . . . . . . . . . . . . . . . 1 . . . . . . Combat 2 | . . . . 2 . . . . . . . . . . . . . . . . . . . Robot Hacks Applied 3 | . . . . 2 . . . . . . . . . . . . 1 . . . . . . parse_system 2 | . . . . 2 . . . . . . . . . . . . . . . . . . . check_alert 1 | . . . . . . . . . . . . . . . . . 1 . . . . . . Relay Couplers Released . | . . . . . . . . . . . . . . . . . . . . . . . . Fabnet Peak Effective % . | . . . . . . . . . . . . . . . . . . . . . . . . Robots Rewired 24 | . . . . . . . . . . 5 . 3 . . 16 . . . . . . . . Allies Hacked . | . . . . . . . . . . . . . . . . . . . . . . . . Hacks Repelled . | . . . . . . . . . . . . . . . . . . . . . . . . Allies | -11 -10 -10 -7 -7 -5 -5 -5 -5 -5 -5 -4 -4 -4 -4 -4 -4 -4 -4 -3 -3 -2 -2 -2 -------- Run | Yrd Mat Sub Rec Scr Fac Was Fac Upp Upp War Pro Fac Was Fac Ext Cet Arc Hub Res Qua Res Tes Frg Total Allies 97 | . . 19 . . . 1 . . 5 5 . 13 . 11 24 5 . . 6 . 7 1 . Largest Group 14 | . . 12 12 1 . 1 . . 4 9 5 7 . 4 11 14 14 12 3 . 3 1 . Highest-Rated Group 930 | . . 229 229 19 . 31 . . 324 589 388 471 . 318 549 930 907 735 243 . 243 45 . Highest-Rated Ally 159 | . . 20 20 19 . 31 . . 81 81 81 81 . 81 159 159 145 96 81 . 139 45 . Total Orders . | . . . . . . . . . . . . . . . . . . . . . . . . Ally Attacks 600 | . . 52 21 . . 5 . . 20 6 16 47 . 77 151 41 18 72 39 . 35 . . Total Damage 21294 | . . 728 347 . . 43 . . 912 91 1209 2910 . 2277 4294 1559 1030 2661 1101 . 2132 . . Kills 141 | . . 6 . . . . . . 4 2 15 16 . 22 28 9 5 17 7 . 10 . . Allies Corrupted 3 | . . . . . . . . . . . . . . . . . . 3 . . . . . Allies Melted 1 | . . . . . . . . . . . . . . . . . . . . . . . 1 Intel | -11 -10 -10 -7 -7 -5 -5 -5 -5 -5 -5 -4 -4 -4 -4 -4 -4 -4 -4 -3 -3 -2 -2 -2 ------- Run | Yrd Mat Sub Rec Scr Fac Was Fac Upp Upp War Pro Fac Was Fac Ext Cet Arc Hub Res Qua Res Tes Frg Active Infowar (turns) 11846 | . 2141 194 . . 681 30 665 155 299 440 426 476 150 624 1038 381 155 190 602 619 465 665 1450 Optics 3849 | . . . . . . . . . . . . . . 522 1038 218 . . . . . 621 1450 Sensors 8084 | . . . . . . . 466 155 299 440 426 476 150 624 1027 381 155 190 602 619 465 665 944 Terrain 6384 | . 17 . . . 559 30 478 140 147 . . 443 150 624 429 153 155 190 211 616 457 647 938 Structural 318 | . . . . . . . . . . . . . . . . . . . 318 . . . . Seismic 3227 | . 2124 194 . . 681 30 198 . . . . . . . . . . . . . . . . Jamming 371 | . . . . . . . . . . . . . . . . . . . . . . 2 369 Robot Analysis Total 12 | . . . . . . . . . . . . . . . 1 . . 1 2 . 1 7 . Derelict Logs Recovered 10 | . . 1 . 5 . . . . 2 . 2 . . . . . . . . . . . . Drone Launches . | . . . . . . . . . . . . . . . . . . . . . . . . Drone Recoveries . | . . . . . . . . . . . . . . . . . . . . . . . . Exploration | -11 -10 -10 -7 -7 -5 -5 -5 -5 -5 -5 -4 -4 -4 -4 -4 -4 -4 -4 -3 -3 -2 -2 -2 ------------- Run | Yrd Mat Sub Rec Scr Fac Was Fac Upp Upp War Pro Fac Was Fac Ext Cet Arc Hub Res Qua Res Tes Frg Turns Passed 22164 | 160 2272 4307 636 5223 681 30 665 155 299 447 426 476 150 624 1038 381 155 198 642 619 465 665 1450 Spaces Moved 20350 | 75 548 1591 433 1714 1317 83 1233 298 508 778 732 1017 298 1368 1035 307 106 251 1452 1231 937 1166 1872 Core 231 | 4 . . . 226 . . . . . . . . . . . . . . . . 1 . . Treads 1669 | 71 548 1050 . . . . . . . . . . . . . . . . . . . . . Legs 1208 | . . . . 1208 . . . . . . . . . . . . . . . . . . . Wheels 1254 | . . 541 433 280 . . . . . . . . . . . . . . . . . . . Hover 833 | . . . . . . . . . . . . . . . . . . . . . . . 833 Flight 15155 | . . . . . 1317 83 1233 298 508 778 732 1017 298 1368 1035 307 106 251 1452 1231 936 1166 1039 Fastest Speed 12 | 50 160 130 130 50 34 34 34 34 39 32 32 26 29 26 26 23 63 18 19 18 12 14 15 Average Speed 78 | 154 293 255 133 298 34 34 36 35 39 34 32 28 29 28 28 46 63 60 20 19 18 16 26 Slowest Speed 1650 | 160 320 480 150 1650 34 34 39 39 39 99 32 29 29 29 29 63 63 63 25 22 700 84 111 Overloaded Moves 71 | . . . . . . . . . . . . 6 . 8 38 . . 14 . . 5 . . Propulsion Burnouts . | . . . . . . . . . . . . . . . . . . . . . . . . Robots Hopped 78 | . . . . . 3 4 4 . . 1 . 5 1 10 22 . . 6 1 6 5 9 1 Potential Cave-ins 2 | . . . . . . . . . . . . . . . . . . . . . . . 2 Cave-ins Triggered . | . . . . . . . . . . . . . . . . . . . . . . . . Teleports 2 | . . . . . . . . . . . . . . . . . . . . . . . 2 Exploration Rate (%) 62 | 5 72 84 85 84 34 76 28 56 64 86 81 28 94 41 95 86 71 25 39 86 29 79 62 Regions Visited 23 Branch Regions 14 Pre-discovered Areas 9 | . 1 1 2 3 1 . . . . . . . . . . . . . . 1 . . . Known Exits Taken 15 | . . . . 1 . . 1 1 1 1 1 . . 1 1 1 1 1 1 1 1 1 . Unknown Exits Taken 4 | 1 1 1 1 . . . . . . . . . . . . . . . . . . . . Scrap Searched 17 | . . 5 . 8 . . . 1 1 . 2 . . . . . . . . . . . . Spaces Dug 544 | . . . . . 74 . 94 7 7 1 8 28 . 81 2 . . 8 129 15 31 19 40 Terrain Destroyed 761 | . . . 2 . 74 . 94 7 8 1 10 71 . 90 6 . . 8 225 15 31 19 100 Melee 159 | . . . . . 25 . 24 2 4 . 1 12 . . 2 . . 8 9 13 23 14 22 Projectile 201 | . . . 2 . 6 . 20 5 4 1 9 27 . 51 4 . . . . 2 8 5 57 AOE 401 | . . . . . 43 . 50 . . . . 32 . 39 . . . . 216 . . . 21 Terrain Rammed . | . . . . . . . . . . . . . . . . . . . . . . . . Walls Destroyed . | . . . . . . . . . . . . . . . . . . . . . . . . Machines Disabled . | . . . . . . . . . . . . . . . . . . . . . . . . Actions | -11 -10 -10 -7 -7 -5 -5 -5 -5 -5 -5 -4 -4 -4 -4 -4 -4 -4 -4 -3 -3 -2 -2 -2 --------- Run | Yrd Mat Sub Rec Scr Fac Was Fac Upp Upp War Pro Fac Was Fac Ext Cet Arc Hub Res Qua Res Tes Frg Total 25524 | 97 1083 1787 484 1829 1484 80 1379 340 599 952 914 1143 359 1543 1736 542 182 275 1738 1568 1167 1590 2653 Wait 3729 | 1 422 99 27 40 70 2 85 34 80 123 174 51 63 113 632 222 63 16 165 285 159 307 496 Move 20186 | 74 547 1589 432 1713 1311 76 1224 297 507 775 731 1008 295 1347 998 306 105 238 1449 1218 929 1147 1870 Hop 64 | . . . . . 3 2 4 . . 1 . 4 1 10 14 . . 6 1 6 2 9 1 Pick Up 170 | 4 17 16 6 30 13 . 4 1 2 4 . 4 . 5 1 3 2 1 15 12 2 7 21 Fast Attach 131 | 6 3 5 . 7 9 . 1 . . . . 5 . 2 2 2 . . 21 4 3 28 33 Attach 62 | . 3 1 . 2 8 . 2 2 1 . . 3 . 1 . 2 1 2 4 3 2 5 20 Detach 57 | . 2 3 . 5 5 . 2 1 . . . 1 . 1 . . . . 5 2 3 7 20 Swap 92 | . 15 5 1 1 5 . 6 . 1 3 2 2 . 3 4 1 1 1 15 6 11 3 6 Drop 201 | . 2 22 6 29 15 . 3 . 1 5 . 3 . 4 3 3 1 1 22 9 4 33 35 Fire 343 | 12 71 47 12 . 5 . 14 3 3 2 6 27 . 41 7 3 . . 11 2 8 5 64 Melee 287 | . . . . 2 40 . 34 2 4 1 1 15 . . 4 . 9 10 30 21 29 24 61 Ram 1 | . . . . . . . . . . . . . . . . . . . . . . . 1 Kick . | . . . . . . . . . . . . . . . . . . . . . . . . Crush 1 | . 1 . . . . . . . . . . . . . . . . . . . . . . Escape Stasis 61 | . . . . . . . . . . . . . . 16 . . . . . . 15 15 15 Rewire 129 | . . . . . . . . . . 38 . 20 . . 71 . . . . . . . . Trap . | . . . . . . . . . . . . . . . . . . . . . . . . Miscellaneous 10 | . . . . . . . . . . . . . . . . . . . . . . . 10 Route ------- -11/Scrapyard -10/Materials (discovered 4 exits: [*Mat x2] / [*Min] / *Sub) -10/Subcaves (discovered 3 exits: [*Mat x2] / *Rec) -7/Recycling (discovered 2 exits: *Fac / *Scr) -7/Scraptown (discovered 2 exits: *Fac x2) -5/Factory (discovered 5 exits: Fac x3 / Upp x2) -5/Waste -5/Factory (discovered 2 exits: *Upp x2) -5/Upper Caves -5/Upper Caves (discovered 2 exits: Fac / *War) -5/Warlord -4/Proximity Caves -4/Factory (discovered 3 exits: *Upp / Ext / Arm) -4/Waste -4/Factory (discovered 8 exits: *Res x3 / Upp x2 / *Ext x2 / Arm) -4/Extension (discovered 2 exits: *Res / *Cet) -4/Cetus (discovered 2 exits: *Res / *Arc) -4/Archives (discovered 3 exits: *Res / *Hub x2) -4/Hub_04(d) (discovered 4 exits: *Res x4) -3/Research (discovered 3 exits: *Res x2 / *Qua) -3/Quarantine -2/Research (discovered 4 exits: Acc x2 / *Tes x2) -2/Testing (discovered 3 exits: Acc / [*Sec] / *Frg) -2/Protoforge (discovered 1 exit: Acc) History --------- Turn | Location | Event 3 | -11/Scrapyard | Discovered new exit (range 15) 161 | -11/Scrapyard | Entered Materials 315 | -10/Materials | Build established: Mutant 440 | -10/Materials | Discovered new exit (range 10) 815 | -10/Materials | Discovered new exit (range 7) 861 | -10/Materials | Derelicts attacked the area 1710 | -10/Materials | Discovered new exit (range 15) 2349 | -10/Materials | Core integrity fell below 50% 2413 | -10/Materials | Discovered new exit (range 7) 2433 | -10/Materials | Entered Subcaves 2434 | -10/Subcaves | Approached by a straggling Scientist 2608 | -10/Subcaves | Visited triangular shrine 2628 | -10/Subcaves | Found Prototype Device 2628 | -10/Subcaves | Identified V3-11A's Pendant 2633 | -10/Subcaves | Befriended Subdweller 2723 | -10/Subcaves | Befriended Subdweller 2743 | -10/Subcaves | Befriended Subdweller 2768 | -10/Subcaves | Befriended Subdweller 3073 | -10/Subcaves | Visited Clippyterm 3082 | -10/Subcaves | Learned Research security intel 3123 | -10/Subcaves | Befriended Subdweller 3123 | -10/Subcaves | Befriended Subdweller 3208 | -10/Subcaves | Befriended Subdweller 3432 | -10/Subcaves | Ambushed by angry Subdweller bent on revenge 3433 | -10/Subcaves | Befriended Subdweller 3524 | -10/Subcaves | Shifting Twisted Machinery released Spk. Treads 3524 | -10/Subcaves | Shifting Twisted Machinery released Battle Rifle 3669 | -10/Subcaves | Visited 4L-MR0's lab 3701 | -10/Subcaves | Found Flightbrick 3942 | -10/Subcaves | Discovered new exit (range 15) 5198 | -10/Subcaves | A Subdweller sparked back to life 5198 | -10/Subcaves | A Subdweller sparked back to life 5198 | -10/Subcaves | A Subdweller sparked back to life 5203 | -10/Subcaves | Befriended Subdweller 5203 | -10/Subcaves | Befriended Subdweller 5203 | -10/Subcaves | Befriended Subdweller 5258 | -10/Subcaves | Discovered new exit (range 15) 5324 | -10/Subcaves | Ambushed by Subdwellers from Twisted Machinery 5328 | -10/Subcaves | Befriended Subdweller 5348 | -10/Subcaves | Befriended Subdweller 5393 | -10/Subcaves | Shifting Twisted Machinery released Sub. Shrapnel Launcher 5398 | -10/Subcaves | Shifting Twisted Machinery released Sub. Power Source 5503 | -10/Subcaves | Befriended Subdweller 5674 | -10/Subcaves | Shifting Twisted Machinery released Sub. Laser 5717 | -10/Subcaves | Shifting Twisted Machinery released Sub. Beam Cannon 5936 | -10/Subcaves | Discovered new exit (range 8) 5960 | -10/Subcaves | Lost 3 allies 6023 | -10/Subcaves | Befriended Subdweller 6133 | -10/Subcaves | Befriended Subdweller 6138 | -10/Subcaves | Befriended Subdweller 6138 | -10/Subcaves | Befriended Subdweller 6193 | -10/Subcaves | Befriended Subdweller 6206 | -10/Subcaves | A swath of the cavern ceiling suddenly collapsed 6348 | -10/Subcaves | A swath of the cavern ceiling suddenly collapsed 6740 | -10/Subcaves | Entered Recycling 6740 | -7/Recycling | Accompanied by 12 allies 6868 | -7/Recycling | Scanned before Scraplab entrance 7016 | -7/Recycling | Discovered new exit (range 6) 7137 | -7/Recycling | Found Gun Armor 7148 | -7/Recycling | Lost 11 allies 7360 | -7/Recycling | Entered Scraplab 7372 | -7/Recycling | Discovered new exit (range 2) 7376 | -7/Recycling | Entered Scraptown 7376 | -7/Scraptown | Accompanied by 1 ally 7470 | -7/Scraptown | Visited Bundlers 7541 | -7/Scraptown | Visited Junk Repository 7571 | -7/Scraptown | Heard Great Nut preacher, LISTEN AND RECITE! 7598 | -7/Scraptown | Scanned Subdweller tech in exchange for log data 7601 | -7/Scraptown | Learned Factory garrison access intel 7602 | -7/Scraptown | Learned 8 Factory zone layouts 7605 | -7/Scraptown | Learned Factory stockpile data 7607 | -7/Scraptown | Learned Factory emergency access door positions 7770 | -7/Scraptown | Delivered V3-11A's Pendant to T0-NE2 in exchange for information 9256 | -7/Scraptown | Visited The Evicted 9340 | -7/Scraptown | Visited Comm Corps 9405 | -7/Scraptown | Visited Red Mages 9875 | -7/Scraptown | Visited UFD Registry 9875 | -7/Scraptown | Registered with UFD as "Autoranger" 9953 | -7/Scraptown | Visited LU-1G1's Boring Crew 9988 | -7/Scraptown | Visited Scrapoid Research Area 10025 | -7/Scraptown | Visited A0-MCA Data Center 10055 | -7/Scraptown | Visited Chapter 10 10091 | -7/Scraptown | Visited Scrapoid Pod Storage 10123 | -7/Scraptown | Visited Derelict Rescue Squad 10153 | -7/Scraptown | Visited Cartography Club 10198 | -7/Scraptown | Visited Botcube Research 10244 | -7/Scraptown | Visited Curators Association 10299 | -7/Scraptown | Visited Junk Repository 10527 | -7/Scraptown | Delivered Scrap Shield to a Scientist 10779 | -7/Scraptown | Given a D+ rating by A0-MCA 10781 | -7/Scraptown | Found A0-MCA's Component Scanner 10946 | -7/Scraptown | Found Surveybot 17 Chip 10985 | -7/Scraptown | Found Deep Structural Scanner 10990 | -7/Scraptown | Learned location of Lower Caves (-6) 10990 | -7/Scraptown | Learned location of Hub_04(d) (-4) 10990 | -7/Scraptown | Learned location of Testing (-2) 10990 | -7/Scraptown | Learned 24 Factory zone layouts 10990 | -7/Scraptown | Learned 8 Lower Caves zone layouts 10990 | -7/Scraptown | Learned 20 Upper Caves zone layouts 10990 | -7/Scraptown | Learned 24 Upper Caves zone layouts 10990 | -7/Scraptown | Learned 20 Proximity Caves zone layouts 10990 | -7/Scraptown | Learned location of 1 exit from Factory 10990 | -7/Scraptown | Learned location of 3 exits from Lower Caves 10990 | -7/Scraptown | Identified exit to Factory 11845 | -7/Scraptown | Visited Cave Peace 12533 | -7/Scraptown | Met Optimus 12533 | -7/Scraptown | Accepted into 0bPrime 12596 | -7/Scraptown | Discovered exit to Factory (range 3) 12599 | -7/Scraptown | Entered Factory 12599 | -5/Factory | Evolved 10 slots: Propulsion x4, Utility x6 12600 | -5/Factory | Identified exit to Factory 12601 | -5/Factory | Identified exit to Upper Caves 12602 | -5/Factory | Attached Flightbrick, gained temporary slots: Utility x3 12604 | -5/Factory | Loaded intel: 4 garrison access locations 12682 | -5/Factory | Loaded intel: 8 recycling unit locations 12707 | -5/Factory | Learned location of Protoforge (-2) 12901 | -5/Factory | Build established: Hacker-Mutant 12923 | -5/Factory | Repaired Broken Mapping Drone Bay? 13066 | -5/Factory | Fabricated Quantum Reactor? 13075 | -5/Factory | Spotted B-75 Beast 13270 | -5/Factory | Fabricated Cld. Impulse Thruster (x1) 13280 | -5/Factory | Manually triggered Chute Trap 13280 | -5/Factory | Sucked down chute 13280 | -5/Factory | Entered Waste 13281 | -5/Waste | Met a frightened Derelict 13283 | -5/Waste | Spotted C-40 Crusher 13283 | -5/Waste | Spotted C-40 Crusher 13291 | -5/Waste | Spotted C-40 Crusher 13291 | -5/Waste | Spotted C-40 Crusher 13292 | -5/Waste | Spotted C-40 Crusher 13295 | -5/Waste | EMP discharged 13298 | -5/Waste | Spotted C-40 Crusher 13307 | -5/Waste | Discovered new exit (range 12) 13310 | -5/Waste | Entered Factory 13506 | -5/Factory | Discovered exit to Upper Caves (range 10) 13572 | -5/Factory | Repaired Broken Cld. Impulse Thruster 13616 | -5/Factory | Discovered exit to Upper Caves (range 17) 13630 | -5/Factory | Loaded intel: 8 recycling unit locations 13910 | -5/Factory | Search patrols dispatched 13975 | -5/Factory | Entered Upper Caves 13976 | -5/Upper Caves | Identified exit to Upper Caves 13977 | -5/Upper Caves | UFD Scientist delivered a prototype 13980 | -5/Upper Caves | Found Prototype Protection 14095 | -5/Upper Caves | Build established: Hacker-Scout 14130 | -5/Upper Caves | Entered another Upper Caves area 14131 | -5/Upper Caves | Identified exit to Warlord 14217 | -5/Upper Caves | Learned Factory trap positions 14260 | -5/Upper Caves | Spotted B-75 Beast 14274 | -5/Upper Caves | Prototype Device suddenly appears! 14276 | -5/Upper Caves | Found Prototype Device 14277 | -5/Upper Caves | Identified Amulet of Y3-NDR 14322 | -5/Upper Caves | Joined by bewildered Wizard 14323 | -5/Upper Caves | Joined by bewildered Wizard 14347 | -5/Upper Caves | Learned Factory emergency access door positions 14358 | -5/Upper Caves | Identified Enh. Scrap Shield 14368 | -5/Upper Caves | Joined by bewildered Wizard 14368 | -5/Upper Caves | Joined by bewildered Wizard 14422 | -5/Upper Caves | Joined by bewildered Wizard 14429 | -5/Upper Caves | Entered Warlord 14429 | -5/Warlord | Accompanied by 4 allies 14440 | -5/Warlord | Discovered new exit (range 14) 14476 | -5/Warlord | Learned Armory security intel 14476 | -5/Warlord | Learned Research terminal intel 14476 | -5/Warlord | Learned Research scanalyzer intel 14477 | -5/Warlord | Learned 4 Armory zone layouts 14477 | -5/Warlord | Learned 4 Access zone layouts 14477 | -5/Warlord | Learned Armory trap positions 14477 | -5/Warlord | Learned Testing stockpile data 14568 | -5/Warlord | Build established: Hacker-Mutant 14610 | -5/Warlord | Received a Watcher feed algorithm from an ecstatic Tinkerer 14653 | -5/Warlord | Warlord's base attacked by MAIN.C 14690 | -5/Warlord | Found Vortex Rail 14691 | -5/Warlord | Found Vortex Rail 14720 | -5/Warlord | Rebuked by Warlord 14823 | -5/Warlord | Opened side exit 14836 | -5/Warlord | Identified exit to Proximity Caves 14876 | -5/Warlord | Entered Proximity Caves 14876 | -4/Proximity Caves | Accompanied by 5 allies 14921 | -4/Proximity Caves | Build established: Hacker-Sprinter 15023 | -4/Proximity Caves | Received a Behemoth hack from an annoying Tinkerer 15251 | -4/Proximity Caves | Learned 8 Research zone layouts 15272 | -4/Proximity Caves | Learned 4 Research zone layouts 15302 | -4/Proximity Caves | Attracted the attention of an 0b10 outpost 15302 | -4/Proximity Caves | Entered Factory 15302 | -4/Factory | Accompanied by 1 ally 15302 | -4/Factory | Evolved 2 slots: Power x1, Utility x1 15303 | -4/Factory | Identified exit to Extension 15304 | -4/Factory | Loaded intel: 125 trap records 15316 | -4/Factory | Discovered new exit (range 2) 15317 | -4/Factory | Identified exit to Upper Caves 15330 | -4/Factory | Joined by bewildered Wizard 15330 | -4/Factory | Joined by bewildered Wizard 15330 | -4/Factory | Joined by bewildered Wizard 15332 | -4/Factory | Lost 3 allies 15369 | -4/Factory | Lost 4 allies 15395 | -4/Factory | Joined by bewildered Wizard 15395 | -4/Factory | Joined by bewildered Wizard 15423 | -4/Factory | Joined by bewildered Wizard 15439 | -4/Factory | Repaired Enh. Coil Gun? 15446 | -4/Factory | Joined by bewildered Wizard 15553 | -4/Factory | Spotted B-86 Titan 15590 | -4/Factory | Discovered new exit (range 20) 15594 | -4/Factory | Loaded intel: 8 recycling unit locations 15675 | -4/Factory | Joined by bewildered Wizard 15675 | -4/Factory | Joined by bewildered Wizard 15749 | -4/Factory | Joined by bewildered Wizard 15778 | -4/Factory | Sucked down chute 15778 | -4/Factory | Entered Waste 15778 | -4/Waste | The area was eerily silent 15795 | -4/Waste | Build established: Hacker-Scout 15824 | -4/Waste | Discovered new exit (range 12) 15927 | -4/Waste | Identified exit to Factory 15928 | -4/Waste | Entered Factory 15947 | -4/Factory | Joined by bewildered Wizard 15947 | -4/Factory | Joined by bewildered Wizard 15965 | -4/Factory | Loaded intel: 8 recycling unit locations 16018 | -4/Factory | Joined by bewildered Wizard 16019 | -4/Factory | Joined by bewildered Wizard 16044 | -4/Factory | Discovered exit to Extension (range 18) 16118 | -4/Factory | Joined by bewildered Wizard 16155 | -4/Factory | Discovered new exit (range 18) 16160 | -4/Factory | Lost 3 allies 16164 | -4/Factory | Discovered new exit (range 23) 16189 | -4/Factory | Joined by bewildered Wizard 16189 | -4/Factory | Joined by bewildered Wizard 16189 | -4/Factory | Joined by bewildered Wizard 16214 | -4/Factory | Found Exp. Signal Interpreter 16252 | -4/Factory | Discovered exit to Upper Caves (range 19) 16277 | -4/Factory | Fabricated Adv. Hacking Suite? 16277 | -4/Factory | Identified exit to Armory 16294 | -4/Factory | Discovered new exit (range 21) 16302 | -4/Factory | Identified exit to Research 16328 | -4/Factory | Joined by bewildered Wizard 16328 | -4/Factory | Joined by bewildered Wizard 16474 | -4/Factory | Fabricated Adv. Hacking Suite? 16552 | -4/Factory | Entered Extension 16572 | -4/Extension | Rescued a captive Derelict 16573 | -4/Extension | Rescued a captive Derelict 16609 | -4/Extension | Rescued a captive Derelict 16611 | -4/Extension | Rescued a captive Derelict 16667 | -4/Extension | Spotted B-86 Titan 16709 | -4/Extension | Central database locked down 17067 | -4/Extension | Spotted B-86 Titan 17093 | -4/Extension | Discovered exit to Research (range 22) 17093 | -4/Extension | Discovered new exit (range 22) 17254 | -4/Extension | Rescued a captive Derelict 17255 | -4/Extension | Rescued a captive Derelict 17259 | -4/Extension | Rescued a captive Derelict 17260 | -4/Extension | Rescued a captive Derelict 17356 | -4/Extension | Rescued A7 17507 | -4/Extension | Identified exit to Cetus 17590 | -4/Extension | Entered Cetus 17590 | -4/Cetus | Accompanied by 11 allies (A7) 17595 | -4/Cetus | Acquired a Cetus Manufacturing Module code from A7 17597 | -4/Cetus | Spotted Cetus Guard 17597 | -4/Cetus | Spotted Cetus Guard 17597 | -4/Cetus | Spotted Cetus Guard 17597 | -4/Cetus | Spotted Cetus Guard 17614 | -4/Cetus | Allies destroyed Cetus Guard 17615 | -4/Cetus | Allies destroyed Cetus Guard 17615 | -4/Cetus | Destroyed Cetus Guard 17624 | -4/Cetus | Allies destroyed Cetus Guard 17640 | -4/Cetus | Started Cetus Manufacturing Module 17665 | -4/Cetus | Manufactured an Enhanced Grunt 17678 | -4/Cetus | Escorted A7 to Cetus Mainframe 17690 | -4/Cetus | Manufactured an Enhanced Grunt 17715 | -4/Cetus | Manufactured an Enhanced Grunt 17740 | -4/Cetus | Manufactured an Enhanced Grunt 17765 | -4/Cetus | Manufactured an Enhanced Grunt 17771 | -4/Cetus | Discovered new exit (range 21) 17797 | -4/Cetus | Spotted Cetus Guard 17797 | -4/Cetus | Spotted Cetus Guard 17806 | -4/Cetus | Allies destroyed Cetus Guard 17806 | -4/Cetus | Spotted Cetus Guard 17806 | -4/Cetus | Spotted Cetus Guard 17818 | -4/Cetus | Allies destroyed Cetus Guard 17820 | -4/Cetus | Allies destroyed Cetus Guard 17822 | -4/Cetus | Discovered exit to Research (range 16) 17824 | -4/Cetus | Met Revision 17 17928 | -4/Cetus | Identified exit to Archives 17971 | -4/Cetus | Entered Archives 17971 | -4/Archives | Accompanied by 14 allies (A7) 17976 | -4/Archives | Received a hacking code to weaken MAIN.C 17997 | -4/Archives | Build established: Commander-Scout 18016 | -4/Archives | Discovered exit to Research (range 15) 18022 | -4/Archives | Discovered new exit (range 15) 18023 | -4/Archives | Discovered new exit (range 17) 18081 | -4/Archives | Identified exit to Hub_04(d) 18126 | -4/Archives | Entered Hub_04(d) 18126 | -4/Hub_04(d) | Accompanied by 12 allies 18266 | -4/Hub_04(d) | Garrison activated, responded to threat 18286 | -4/Hub_04(d) | Network Hub disabled 18292 | -4/Hub_04(d) | Network Hub disabled 18302 | -4/Hub_04(d) | Spotted Lightning 18306 | -4/Hub_04(d) | Spotted Lightning 18308 | -4/Hub_04(d) | Spotted Lightning 18311 | -4/Hub_04(d) | Spotted Lightning 18311 | -4/Hub_04(d) | Spotted Lightning 18313 | -4/Hub_04(d) | Spotted Lightning 18313 | -4/Hub_04(d) | Spotted Lightning 18313 | -4/Hub_04(d) | Spotted Lightning 18321 | -4/Hub_04(d) | System corruption reached 10% 18324 | -4/Hub_04(d) | Entered Research 18324 | -3/Research | Evolved 2 slots: Utility x2 18325 | -3/Research | Identified exit to Quarantine 18328 | -3/Research | Loaded intel: 24 terminal locations 18329 | -3/Research | Loaded intel: 6 scanalyzer locations 18342 | -3/Research | Lost 3 allies 18349 | -3/Research | Lost 6 parts (1p4u1w) 18405 | -3/Research | Joined by bewildered Wizard 18405 | -3/Research | Joined by bewildered Wizard 18406 | -3/Research | Joined by bewildered Wizard 18456 | -3/Research | Loaded intel: 5 recycling unit locations 18465 | -3/Research | Central database locked down 18491 | -3/Research | Joined by bewildered Wizard 18524 | -3/Research | Revision forces began assault on 0b10 18561 | -3/Research | Found Prototype Launcher 18561 | -3/Research | Identified Com. Tesla Bomb Launcher 18600 | -3/Research | Met up with Revision 17++ 18601 | -3/Research | Repaired Centrium Medium Armor Plating? 18616 | -3/Research | Fabricated Exp. Terrain Scan Processor (x1) 18707 | -3/Research | Discovered new exit (range 9) 18708 | -3/Research | Identified exit to Research 18739 | -3/Research | Found Fusion Bomb Launcher 18795 | -3/Research | Discovered exit to Research (range 12) 18870 | -3/Research | Found Prototype Launcher 18870 | -3/Research | Identified Mni. Smartbomb Launcher 18966 | -3/Research | Entered Quarantine 18989 | -3/Quarantine | Found Alien Artifact 19033 | -3/Quarantine | Central database locked down 19077 | -3/Quarantine | Build established: Wizard-Scout 19082 | -3/Quarantine | Repaired Cld. Impulse Thruster 19144 | -3/Quarantine | Found Prototype Hackware 19158 | -3/Quarantine | Found Alien Artifact 19191 | -3/Quarantine | Repaired Centrium Medium Armor Plating? 19260 | -3/Quarantine | Repaired Adv. Sensor Array? 19260 | -3/Quarantine | Found Alien Slashing Weapon 19362 | -3/Quarantine | Identified Core Reset Matrix 19362 | -3/Quarantine | Identified Exp. Hacking Suite 19362 | -3/Quarantine | Identified Subatomic Replicator 19395 | -3/Quarantine | Learned Access stockpile data 19400 | -3/Quarantine | Identified Sigix Broadsword 19426 | -3/Quarantine | Found Alien Artifact 19432 | -3/Quarantine | Found Alien Artifact 19448 | -3/Quarantine | Learned 8 Research zone layouts 19493 | -3/Quarantine | Learned Research scanalyzer intel 19564 | -3/Quarantine | Identified Dimensional Node Initializer 19564 | -3/Quarantine | Identified Hpw. Transdimensional Reconstructor 19575 | -3/Quarantine | Found Alien Artifact 19585 | -3/Quarantine | Entered Research 19585 | -2/Research | Evolved 2 slots: Propulsion x1, Utility x1 19586 | -2/Research | Identified exit to Access 19588 | -2/Research | Loaded intel: 6 scanalyzer locations 19594 | -2/Research | Loaded intel: 5 recycling unit locations 19607 | -2/Research | Identified exit to Testing 19951 | -2/Research | Garrison activated, responded to threat 19986 | -2/Research | Joined by bewildered Wizard 20022 | -2/Research | Scraphulk reinforcements arrived 20050 | -2/Research | Entered Testing 20080 | -2/Testing | Protovariant out of control (PY-LXEN5VK8P9) 20080 | -2/Testing | Unleashed a protovariant (PY-LXEN5VK8P9) 20088 | -2/Testing | Identified Transdimensional Reconstructor 20213 | -2/Testing | Protovariant out of control (PY-1YUUIJA80Q) 20213 | -2/Testing | Unleashed a protovariant (PY-1YUUIJA80Q) 20216 | -2/Testing | Found Ragnarok Missile Launcher 20220 | -2/Testing | Found Prototype Device 20220 | -2/Testing | Identified Exp. Shock Absorption System 20224 | -2/Testing | Fabricated Femtoactuators? 20268 | -2/Testing | Spotted PY-1YUUIJA80Q 20297 | -2/Testing | Repaired Imp. Diametric Drive? 20313 | -2/Testing | Found Prototype Launcher 20313 | -2/Testing | Identified Point Singularity Launcher 20494 | -2/Testing | Found Prototype Launcher 20494 | -2/Testing | Identified Containment Facilitator 20585 | -2/Testing | Discovered exit to Access (range 20) 20687 | -2/Testing | Found Prototype Processor 20687 | -2/Testing | Identified Exp. Core Analyzer 20700 | -2/Testing | Spotted Fortress 20714 | -2/Testing | Discovered new exit (range 8) 20714 | -2/Testing | Discovered new exit (range 5) 20715 | -2/Testing | Identified exit to Protoforge 20715 | -2/Testing | Entered Protoforge 20880 | -2/Protoforge | Spotted Overlord 20963 | -2/Protoforge | Spotted B-90 Cyclops 20964 | -2/Protoforge | Superfortress began startup sequence 20994 | -2/Protoforge | Spotted AP7-3 20995 | -2/Protoforge | Build established: Hacker-Scout 21318 | -2/Protoforge | Forge Plexus network access discovered 21326 | -2/Protoforge | Spotted Decapitator 21328 | -2/Protoforge | Found Cep. Weapon Articulator 21330 | -2/Protoforge | Spotted Decapitator 21330 | -2/Protoforge | Destroyed Decapitator 21331 | -2/Protoforge | Spotted Decapitator 21334 | -2/Protoforge | Destroyed Decapitator 21349 | -2/Protoforge | Destroyed Decapitator 21392 | -2/Protoforge | Spotted Immortal 21392 | -2/Protoforge | Spotted Immortal 21395 | -2/Protoforge | Spotted Decapitator 21395 | -2/Protoforge | Spotted Decapitator 21395 | -2/Protoforge | Spotted Decapitator 21402 | -2/Protoforge | Found Cep. Zero-point Core 21472 | -2/Protoforge | Spotted Decapitator 21472 | -2/Protoforge | Spotted Decapitator 21472 | -2/Protoforge | Spotted V751-m 21472 | -2/Protoforge | Spotted Decapitator 21487 | -2/Protoforge | Found Cep. Fieldthrust Drive 21496 | -2/Protoforge | Found Cep. Gyrokinetic System 21573 | -2/Protoforge | Found Cep. Combat Aerolev Unit 21575 | -2/Protoforge | Found Cep. Combat Aerolev Unit 21632 | -2/Protoforge | Found Cep. Gyrokinetic System 21652 | -2/Protoforge | Destroyed Decapitator 21658 | -2/Protoforge | Warped through subspace 21666 | -2/Protoforge | Warped through subspace 21695 | -2/Protoforge | Lost 3 parts (2u1w) 21700 | -2/Protoforge | System corruption reached 10% 21713 | -2/Protoforge | Found Cep. Variable Chargecaster 21736 | -2/Protoforge | Spotted EXE-6 21736 | -2/Protoforge | Spotted EXE-6 21745 | -2/Protoforge | Spotted SKR-2 21753 | -2/Protoforge | UFD initiated attack on Protoforge 21753 | -2/Protoforge | Loaded intel: 3 recycling unit locations 21767 | -2/Protoforge | Spotted SKR-2 21767 | -2/Protoforge | Spotted SKR-2 21775 | -2/Protoforge | Found Exp. Armor Integrity Analyzer 21777 | -2/Protoforge | Found Cep. XC Strikerail 21780 | -2/Protoforge | Found Cep. XC Strikerail 21782 | -2/Protoforge | Found Exp. Core Analyzer 21789 | -2/Protoforge | Optimus greeted in Protoforge 21818 | -2/Protoforge | Found Corrupted Scrap Suit 21832 | -2/Protoforge | Found Scrap Suit 21842 | -2/Protoforge | Spotted EXE-6 21845 | -2/Protoforge | Spotted EXE-6 21852 | -2/Protoforge | Destroyed EXE-6 21873 | -2/Protoforge | Found Exp. Kinecellerator 21886 | -2/Protoforge | Lost 3 allies 21897 | -2/Protoforge | Spotted AP7-3 21917 | -2/Protoforge | Destroyed AP7-3 21921 | -2/Protoforge | Found Cep. XC Strikerail 21940 | -2/Protoforge | Destroyed B-90 Cyclops 21943 | -2/Protoforge | Found 0bPrime Scrap Suit 21957 | -2/Protoforge | Spotted Hotshot 21957 | -2/Protoforge | Spotted Hotshot 21964 | -2/Protoforge | Lost 5 parts (1p1n2u1w) 21966 | -2/Protoforge | Lost 9 allies 21968 | -2/Protoforge | Destroyed Hotshot 21989 | -2/Protoforge | Spotted Hotshot 21989 | -2/Protoforge | Spotted Hotshot 22000 | -2/Protoforge | Met 7R-MNS 22023 | -2/Protoforge | Destroyed Hotshot 22029 | -2/Protoforge | Destroyed Hotshot 22050 | -2/Protoforge | Found 0bPrime Scrap Suit 22055 | -2/Protoforge | Spotted Striker 22055 | -2/Protoforge | Spotted Executioner 22055 | -2/Protoforge | Spotted Hotshot 22055 | -2/Protoforge | Spotted Hotshot 22084 | -2/Protoforge | Build established: Scavenger-Mutant 22085 | -2/Protoforge | Destroyed Striker 22095 | -2/Protoforge | Found UFD Drillbomb 22097 | -2/Protoforge | Core integrity fell below 50% 22106 | -2/Protoforge | Lost 11 allies 22108 | -2/Protoforge | Used Subatomic Replicator to replicate UFD Drillbomb 22124 | -2/Protoforge | Installed UFD Drillbomb at designated target 22124 | -2/Protoforge | UFD reported confirmed Drillbomb installation 22135 | -2/Protoforge | Core integrity fell below 20% 22165 | -2/Protoforge | Destroyed by X-87 Electro with Compact HERF Cannon Last Messages --------------- 22133_ N-04 Retriever collects 0bPrime Scrap Suit. 22133_ Knocked back. 22133_ H-88 Terminator knocked back. 22134_ Cep. Zero-point Core destroyed. 22134_ Exp. Core Analyzer destroyed. 22135_ 0JHWEC16AAFRNCOJ|T2AP43VVS 22135_ 0bPrime Scrap Suit destroyed. 22136_ O-24 Administrator destroyed. 22136_ Knocked back. 22140_ Hotshot activates shielding mode. 22157_ System corrupted: Matter fused (-5). 22161_ Slug penetrates Wall. 22162_ ALERT: Alarm triggered, dispatching investigation squad. 22162_ Exp. Kinecellerator destroyed. 22163_ Exp. Armor Integrity Analyzer destroyed. 22163_ P-80 Master knocked back. 22164_ Slug penetrates Wall. Map ----- +----------------------------------------------------+ | %######"%%%= "###################"########## | | "[]###""%!%% ############### " ####### | | *% ![" % ! """ % """############ """ " ####### | | [!%[ T *%%""" % %"%"""T""" ##### """ "" #### ## | | [*[! " =" "%% ##### """ "#### # | | ""# #"" %% %#% ### " " ## # | | ####"#"! % % % % " " " # # # | | ##### # " % %% " " " " ""### "! | | ######" ="" " % # " " " " " ## =!=""#! | | # # """ != # " " " " # ########=#""[%[ "" | | # """ # # *%%!*[==![[= [! | | # " #####/##### !]!! % %[%%![! | | # % ### xxx ### " "%=! %!*!=[ ![ | | # #####"# ### ! ### " " " "%##==[ !! | | ## ## ####"##+#"### ### " " ####[#"##! | | ## ###" ## ## ! ### # ### | | "## # # "# #"" " " " + ### | | # """ # "" "" #"# ##"" " " " # ### | | # """ "!""R"" ##; ##"" " "n" # ### | | """ ?# """ [%="""" ### %##T # ### | | """" # # % ### ;#"" " " " # ### | | """" ?# ####;;##### ##"" " " ########## | | """? # "" # # ^##"" " " " ########## | | ? # """ #" # ^^;;;;%% ""######## | | + S" #"T """ ; " " " ""######## | | # """ #""" "" ; @% % " " " ""######## | | # """ # "" ; " " T######## | | # # # % %[ ""######## | | ####+#######; # % % " " " ""######## | | ? #### % ; % " " " ""######## | | " #######+###";%=%%|%[ " " " ########## | | " ? " #######*###;;[[== !! ########## | | " ?"" ####### %!% " " " ########## | | " """ ####### % * " " " ########## | | """ ####### ! " " " # ### | | "" ##?#### [%% " # ### | | #######! %% "" " " " # ### | | ###############;[% % """ " " " + ### | | %[* % " " " # ### | | =[ # ### | | ^S m ;;;"" " ## ########## | | SS ! %; ;""T""#####+################ | | "" """ """ = % ; ; """ ## ############ | | "" """ """ " " "! %# ######## ############ | | "" """ """ """ ""!=!########## ############ | | ########## ############ | | "" """ """ """ " ########## ############ | | "" """ """ """ ########## ############ | | "" """ """ """ # + ############ | | # """" # ############ | +----------------------------------------------------+ Best States ------------- Heat Dissipation 49 Energy Generation 45 Energy Capacity 1400 Matter Stores 300 Matter Capacity 300 Sight Range 23 Robot Scan Range 18 Terrain Scan Range 24 Terrain Scan Density 1210 Jamming Range 16 Power Amplification 40 Armor Coverage 450 Utility Shielding 66 Melee Speed Boost 50 Evasion (%) 71 Target Analysis 8 Core Analysis 12 Armor Integrity Analysis 50 Recoil Reduction 2 Kinecelleration 66 Offensive Hacking 58 Defensive Hacking 22 Authchip Count 1 Item Schematics ----------------- Multitool | -5/Factory | Scanalyzed Mapping Drone Bay | -5/Factory | Scanalyzed Cld. Impulse Thruster | -5/Factory | Scanalyzed Adv. Hacking Suite | -4/Factory | Hacked Exp. Terrain Scan Processor | -3/Research | Hacked Adv. Powered Armor | -3/Research | Hacked Nanosword | -3/Quarantine | Hacked Impulse Thruster Array | -3/Quarantine | Hacked Exp. Hacking Suite | -3/Quarantine | Scanalyzed Femtoactuators | -2/Research | Hacked Enh. Multireflex Exoskeleton | -2/Research | Hacked Hvy. Hardcell Cannon | -2/Testing | Archive Exp. EM Disruption Field | -2/Testing | Archive Adv. Myomer Leg | -2/Testing | Archive Adv. Gravity Neutralizer | -2/Testing | Archive Exp. Thermal Generator | -2/Testing | Archive Gravity Neutralizer | -2/Testing | Archive Thermal Barrier | -2/Testing | Archive Hvy. Proton Cannon | -2/Testing | Archive Exp. Biometal Heavy Treads | -2/Testing | Archive Adv. Heavy Siege Treads | -2/Protoforge | Hacked Rnf. Quantum Reactor | -2/Protoforge | Hacked Exp. Flexi-carbon Leg | -2/Protoforge | Archive Exp. Energy Well | -2/Protoforge | Archive Robot Schematics ------------------ R-10 Processor | -2/Protoforge | Archive Fabricated ------------ Quantum Reactor | x2 | -5/Factory | Preloaded Cld. Impulse Thruster | x1 | -5/Factory | Preloaded Adv. Hacking Suite | x1 | -4/Factory Adv. Hacking Suite | x1 | -4/Factory Exp. Terrain Scan Processor | x1 | -3/Research Femtoactuators | x1 | -2/Testing Repaired ---------- Mapping Drone Bay | 99% | -5/Factory | Broken Cld. Impulse Thruster | 99% | -5/Factory | Broken Enh. Coil Gun | 37% | -4/Factory Centrium Medium Armor Plating | 68% | -3/Research Cld. Impulse Thruster | 53% | -3/Quarantine Centrium Medium Armor Plating | 47% | -3/Quarantine Adv. Sensor Array | 8% | -3/Quarantine Imp. Diametric Drive | 46% | -2/Testing Alien Tech Used ----------------- Sigix Broadsword High-powered Transdimensional Reconstructor Transdimensional Reconstructor Subatomic Replicator Achievements -------------- None Challenges ------------ None Game ------ Seed SuperdenseFrostShifter Manual? 0 Play Time 05:21:57 Cumulative 541.2 hours Start 2025.08.06 @ 23:15:41 End 2025.08.07 @ 22:52:53 Sessions 13 Manual Loads 0 Difficulty Rogue Special Mode None Game No. 281 Rogue 218 Adventurer 63 Explorer 0 Win Type - Total 10 Types 8/0/0/1/0/0/1/0/0/0 Lore% 91 Gallery% 84 Achievement% 69 Wizard Run 0 Options --------- Layout 1 ASCII 0 Keyboard 1 Movement Numpad Keybinds 0 Fullscreen 2 Font 24/Terminus Map View 50x35 Zoom Use 0% Tactical HUD 1 Map Filters NONE Filters NONE Steam 1 RUN: 442f48e6-3e19-438d-96ff-d6e5dca1bdda